bitfinex-derivatives/quotes_BTCF0:USTF0_20250901
["timestamp","ask_amount","ask_price","bid_price","bid_amount"]
[1756719000661,0.48757959,109780.0,109770.0,1.47526283]
[1756719001065,0.52315959,109780.0,109770.0,1.47526283]
[1756719002160,0.46393959,109780.0,109770.0,2.05306137]
[1756719002366,0.01981959,109780.0,109770.0,2.05306137]
[1756719002766,0.01981959,109780.0,109770.0,1.81635583]
[1756719003660,0.01881959,109780.0,109770.0,1.57965029]
[1756719003862,0.01881959,109780.0,109770.0,1.81735583]
[1756719004671,0.01881959,109780.0,109770.0,2.05506137]
[1756719004872,0.01881959,109780.0,109770.0,2.88618137]
[1756719006181,0.85476,109790.0,109780.0,0.08153]
[1756719006471,0.03558,109800.0,109790.0,0.08153]
[1756719006472,0.08405,109800.0,109790.0,0.08153]
[1756719006671,0.90010521,109800.0,109790.0,1.05959032]
[1756719007570,0.90010521,109800.0,109790.0,1.03959032]
[1756719007874,0.93568521,109800.0,109790.0,1.03959032]
[1756719008073,0.93768521,109800.0,109790.0,1.03959032]
[1756719008864,0.93768521,109800.0,109790.0,1.05959032]
[1756719009071,0.90010521,109800.0,109790.0,1.05959032]
[1756719009366,0.02059521,109800.0,109790.0,1.15066632]
[1756719009572,0.85155521,109800.0,109790.0,1.15066632]
[1756719010373,0.02059521,109800.0,109790.0,1.15066632]
[1756719010866,0.02059521,109800.0,109790.0,1.15521632]
[1756719011367,0.02059521,109800.0,109790.0,0.91851078]
[1756719011672,0.02059521,109800.0,109790.0,1.15521632]
[1756719011872,0.02059521,109800.0,109790.0,2.23613632]
[1756719012073,0.42788,109810.0,109790.0,2.43700186]
[1756719012276,0.49692092,109810.0,109800.0,0.91574108]
[1756719012465,0.47635,109810.0,109800.0,1.04903554]
[1756719013774,0.45152,109810.0,109800.0,1.04903554]
[1756719014170,0.45152,109810.0,109800.0,1.06285554]
[1756719014366,0.45352,109810.0,109800.0,1.06285554]
[1756719014564,0.42988,109810.0,109800.0,1.06285554]
[1756719014763,0.43088,109810.0,109800.0,1.06285554]
[1756719014968,0.45452,109810.0,109800.0,0.82615]
[1756719015183,0.003,109810.0,109800.0,1.64062898]
[1756719015569,0.003,109810.0,109800.0,1.9980579]
[1756719015869,0.003,109810.0,109800.0,2.47146898]
[1756719018772,0.003,109810.0,109800.0,2.47138898]
[1756719020580,0.86739,109830.0,109800.0,2.47138898]
[1756719020783,0.89721991,109830.0,109820.0,1.04018554]
[1756719021086,0.93392991,109830.0,109820.0,1.40021128]
[1756719021979,0.93892991,109830.0,109820.0,1.40021128]
[1756719022582,0.93792991,109830.0,109820.0,1.40021128]
[1756719022884,0.94092991,109830.0,109820.0,1.40021128]
[1756719025885,1.78843545,109830.0,109810.0,0.39737]
[1756719026077,1.78843545,109830.0,109810.0,0.3608]
[1756719026078,0.31959554,109820.0,109810.0,0.3608]
[1756719026280,0.35847012,109820.0,109810.0,0.3608]
[1756719026586,0.08289,109810.0,109800.0,0.44268]
[1756719026786,1.17051545,109810.0,109800.0,0.44268]
[1756719027286,1.42051545,109810.0,109800.0,0.40611]
[1756719027684,1.18480991,109810.0,109800.0,0.40611]
[1756719027886,1.42151545,109810.0,109800.0,0.41066]
[1756719028078,1.18480991,109810.0,109800.0,0.41066]
[1756719028274,1.42151545,109810.0,109800.0,0.41066]
[1756719028486,1.42151545,109810.0,109800.0,0.44723]
[1756719028687,1.42251545,109810.0,109800.0,0.44723]
[1756719028886,1.18580991,109810.0,109800.0,0.44723]
[1756719029585,1.42251545,109810.0,109800.0,0.36535]
[1756719029784,1.42251545,109810.0,109800.0,0.00455]
[1756719030480,1.47170104,109810.0,109800.0,0.00455]
[1756719030677,0.15448096,109810.0,109800.0,0.44723]
[1756719030979,0.93585537,109810.0,109800.0,1.04393554]
[1756719031377,0.85300537,109810.0,109800.0,1.04393554]
[1756719031585,0.02240537,109810.0,109800.0,1.04393554]
[1756719031882,0.85296537,109810.0,109800.0,1.05871554]
[1756719032988,0.85296537,109810.0,109800.0,1.04393554]
[1756719033392,0.88967537,109810.0,109800.0,1.04393554]
[1756719034094,0.93585537,109810.0,109800.0,1.03393554]
[1756719035592,0.93585537,109810.0,109800.0,0.68393554]
[1756719035793,0.93585537,109810.0,109800.0,0.41066]
[1756719036091,1.17256091,109810.0,109800.0,0.41066]
[1756719036498,0.93585537,109810.0,109800.0,0.41066]
[1756719038694,0.10529537,109810.0,109800.0,1.05393554]
[1756719038888,0.85292537,109810.0,109800.0,1.29064108]
[1756719039196,0.02240537,109810.0,109800.0,1.29064108]
[1756719039494,0.002,109810.0,109800.0,1.55542108]
[1756719041693,0.002,109810.0,109800.0,1.81992108]
[1756719042999,0.001,109810.0,109800.0,1.81992108]
[1756719043191,0.001,109810.0,109800.0,1.82092108]
[1756719043392,0.93192467,109820.0,109810.0,0.08188]
[1756719043598,0.9523666,109820.0,109810.0,0.99938554]
[1756719044105,0.9523666,109820.0,109810.0,0.96281554]
[1756719044588,0.9523666,109820.0,109810.0,0.96736554]
[1756719044790,0.9523666,109820.0,109810.0,1.00393554]
[1756719045006,0.9523666,109820.0,109810.0,0.68393554]
[1756719045300,0.9523666,109820.0,109810.0,0.68493554]
[1756719045800,0.9523666,109820.0,109810.0,0.44823]
[1756719046499,0.9523666,109820.0,109810.0,0.68493554]
[1756719046795,0.9543666,109820.0,109810.0,0.41066]
[1756719046997,1.44107214,109820.0,109810.0,0.36535]
[1756719048495,0.10533193,109820.0,109810.0,1.00393554]
[1756719048700,0.93577193,109820.0,109810.0,1.00393554]
[1756719048900,0.93577193,109820.0,109810.0,1.02399894]
[1756719049096,0.93577193,109820.0,109810.0,0.70399894]
[1756719049802,0.93477193,109820.0,109810.0,0.70399894]
[1756719050100,0.93477193,109820.0,109810.0,0.3854134]
[1756719050300,1.17147747,109820.0,109810.0,0.3854134]
[1756719050502,0.93477193,109820.0,109810.0,0.4102834]
[1756719050700,0.93577193,109820.0,109810.0,0.4335234]
[1756719051096,1.18577193,109820.0,109810.0,0.4335234]
[1756719051298,1.18577193,109820.0,109810.0,0.3854134]
[1756719052605,1.18577193,109820.0,109810.0,0.4102834]
[1756719053702,1.18577193,109820.0,109810.0,0.4335234]
[1756719056005,0.35533193,109820.0,109810.0,0.4335234]
[1756719056206,0.35533193,109820.0,109810.0,0.4703034]
[1756719056403,0.10533193,109820.0,109810.0,1.08700894]
[1756719056604,0.89902193,109820.0,109810.0,0.70700894]
[1756719056804,0.89902193,109820.0,109810.0,1.02700894]
[1756719056997,0.93399193,109820.0,109810.0,0.70700894]
[1756719057200,0.10359193,109820.0,109810.0,1.03700894]
[1756719057407,0.89902193,109820.0,109810.0,1.03700894]
[1756719058202,0.06762193,109820.0,109810.0,1.03700894]
[1756719058402,0.89702193,109820.0,109810.0,1.03700894]
[1756719058605,0.89702193,109820.0,109810.0,1.03800894]
[1756719059009,0.93199193,109820.0,109810.0,1.03800894]
[1756719059205,0.93199193,109820.0,109810.0,0.4713034]
[1756719059400,0.93199193,109820.0,109810.0,1.02800894]
[1756719059401,0.10159193,109820.0,109810.0,1.02800894]
[1756719059710,0.89698193,109820.0,109810.0,1.02800894]
[1756719060509,0.89698193,109820.0,109810.0,1.27800894]
[1756719060711,0.85080193,109820.0,109810.0,1.27800894]
[1756719062210,0.93342193,109820.0,109810.0,1.30800894]
[1756719063413,0.93342193,109820.0,109810.0,0.70800894]
[1756719066806,0.93342193,109820.0,109810.0,1.04800894]
[1756719068512,0.93342193,109820.0,109810.0,1.05800894]
[1756719068817,0.95187999,109820.0,109810.0,0.70800894]
[1756719069014,1.43858553,109820.0,109810.0,0.36635]
[1756719070118,1.43858553,109820.0,109810.0,0.36535]
[1756719070414,1.43858553,109820.0,109810.0,0.36735]
[1756719070613,1.43858553,109820.0,109810.0,0.36835]
[1756719073321,1.43858553,109820.0,109810.0,0.39322]
[1756719074423,1.43858553,109820.0,109810.0,0.41646]
[1756719077226,1.43858553,109820.0,109810.0,0.45324]
[1756719080030,1.43858553,109820.0,109810.0,0.45224]
[1756719080232,1.43958553,109820.0,109810.0,0.45224]
[1756719080835,1.43958553,109820.0,109810.0,0.41546]
[1756719081132,1.44058553,109820.0,109810.0,0.41346]
[1756719082947,1.44058553,109820.0,109810.0,0.44971]
[1756719084348,0.61022553,109820.0,109810.0,0.44971]
[1756719084649,1.44042553,109820.0,109810.0,0.44971]
[1756719085551,1.44042553,109820.0,109810.0,0.41346]
[1756719089247,1.4404455,109820.0,109810.0,0.41346]
[1756719089549,1.20373996,109820.0,109810.0,0.41346]
[1756719089754,1.4404455,109820.0,109810.0,0.44971]
[1756719090651,0.37353996,109820.0,109810.0,0.44971]
[1756719090856,0.95365996,109820.0,109810.0,1.04641554]
[1756719092257,0.12353996,109820.0,109810.0,1.29641554]
[1756719092456,0.08856996,109820.0,109810.0,1.31669798]
[1756719092755,0.91868996,109820.0,109810.0,1.31669798]
[1756719093353,0.91869148,109820.0,109810.0,1.31669798]
[1756719093553,0.95401148,109820.0,109810.0,1.31669798]
[1756719094262,0.91669148,109820.0,109810.0,1.31669798]
[1756719094460,0.95401148,109820.0,109810.0,1.31669798]
[1756719095254,0.08657148,109820.0,109810.0,1.31669798]
[1756719095462,0.86900148,109820.0,109810.0,1.58119798]
[1756719096059,0.02046342,109820.0,109810.0,1.67225768]
[1756719096265,2.00734,109840.0,109830.0,0.08389]
[1756719096457,0.89607699,109840.0,109830.0,1.63890108]
[1756719096652,0.89607699,109840.0,109830.0,1.40219554]
[1756719097250,0.89607699,109840.0,109830.0,1.16549]
[1756719097453,0.89607699,109840.0,109830.0,1.40674554]
[1756719097454,0.87511699,109840.0,109830.0,1.40674554]
[1756719097855,0.85253699,109840.0,109830.0,1.74778864]
[1756719098054,0.85253699,109840.0,109830.0,1.98449418]
[1756719098662,0.85253699,109840.0,109830.0,1.89345108]
[1756719098966,0.85253699,109840.0,109830.0,1.65674554]
[1756719100258,0.85253699,109840.0,109830.0,1.89345108]
[1756719100666,0.02245699,109840.0,109830.0,1.89345108]
[1756719100866,0.02245699,109840.0,109830.0,1.9658612]
[1756719101076,0.02245699,109840.0,109830.0,1.97484812]
[1756719101360,0.02245699,109840.0,109830.0,1.73814258]
[1756719101868,0.02245699,109840.0,109830.0,1.97484812]
[1756719102467,0.02245699,109840.0,109830.0,1.73814258]
[1756719103064,0.02245699,109840.0,109830.0,1.97484812]
[1756719106269,0.02245699,109840.0,109830.0,1.73814258]
[1756719106972,0.02245699,109840.0,109830.0,1.97484812]
[1756719107968,0.002,109840.0,109830.0,1.97484812]
[1756719111475,0.002,109840.0,109830.0,2.06589122]
[1756719111668,0.03711634,109850.0,109840.0,0.08224]
[1756719111868,0.03711634,109850.0,109840.0,2.00099125]
[1756719112065,0.03711634,109850.0,109840.0,2.48769679]
[1756719112272,0.03711634,109850.0,109840.0,2.25099125]
[1756719112572,0.01855067,109860.0,109850.0,0.0910266]
[1756719112774,0.01855067,109860.0,109850.0,1.11121214]
[1756719114173,0.02155067,109860.0,109850.0,1.11121214]
[1756719117180,0.06939067,109860.0,109850.0,1.7041466]
[1756719117476,0.10379067,109860.0,109850.0,1.84982554]
[1756719118473,0.10379067,109860.0,109850.0,1.02018554]
[1756719119579,0.06939067,109860.0,109850.0,1.11121214]
[1756719119783,0.02155067,109860.0,109850.0,1.11121214]
[1756719120777,0.02155067,109860.0,109850.0,1.11576214]
[1756719121378,0.02155067,109860.0,109850.0,1.94536214]
[1756719122481,0.05595067,109860.0,109850.0,1.02473554]
[1756719122684,0.05595067,109860.0,109850.0,1.85429554]
[1756719122982,0.05595067,109860.0,109850.0,1.94532214]
[1756719123187,0.05595067,109860.0,109850.0,1.11576214]
[1756719126087,0.05595067,109860.0,109850.0,1.02473554]
[1756719126585,0.05595067,109860.0,109850.0,1.11576214]
[1756719127774,0.05595067,109860.0,109850.0,1.38026214]
[1756719128788,0.05595067,109860.0,109850.0,1.05253]
[1756719129088,0.10379067,109860.0,109850.0,0.93923554]
[1756719129281,0.37415569,109860.0,109850.0,0.70253]
[1756719129481,0.37415569,109860.0,109850.0,0.93923554]
[1756719130281,1.20367569,109860.0,109850.0,0.93923554]
[1756719133394,1.20367569,109860.0,109850.0,0.70253]
[1756719133692,1.20367569,109860.0,109850.0,0.43803]
[1756719133895,1.20367569,109860.0,109850.0,0.67473554]
[1756719134398,1.44038123,109860.0,109850.0,0.41332]
[1756719134696,1.44038123,109860.0,109850.0,0.36535]
[1756719134993,1.44038123,109860.0,109850.0,0.41332]
[1756719135298,1.44038123,109860.0,109850.0,0.43803]
[1756719136602,0.02336502,109860.0,109850.0,2.10425554]
[1756719136900,0.003,109860.0,109850.0,1.27473554]
[1756719137492,0.003,109860.0,109850.0,1.36576214]
[1756719137898,0.1936,109870.0,109860.0,0.1636983]
[1756719138100,0.21398074,109870.0,109860.0,1.08120384]
[1756719138493,0.21398074,109870.0,109860.0,0.99018554]
[1756719138899,0.10262074,109870.0,109860.0,0.99018554]
[1756719139097,0.10462074,109870.0,109860.0,0.99018554]
[1756719139298,0.10462074,109870.0,109860.0,0.99473554]
[1756719140898,0.10462074,109870.0,109860.0,0.43803]
[1756719141100,0.10562074,109870.0,109860.0,1.29144108]
[1756719143297,0.10562074,109870.0,109860.0,1.38245938]
[1756719143497,0.07122074,109870.0,109860.0,1.38245938]
[1756719144601,0.10523074,109870.0,109860.0,1.38245938]
[1756719144799,0.10523074,109870.0,109860.0,0.81803]
[1756719145006,0.10523074,109870.0,109860.0,1.05473554]
[1756719145303,0.10523074,109870.0,109860.0,1.29144108]
[1756719145702,0.10523074,109870.0,109860.0,1.38245938]
[1756719146705,0.10523074,109870.0,109860.0,1.29144108]
[1756719147495,0.10523074,109870.0,109860.0,1.38245938]
[1756719147697,0.12976559,109910.0,109900.0,0.04889]
[1756719148007,0.12976559,109910.0,109900.0,0.45488992]
[1756719148206,0.12976559,109910.0,109900.0,0.43017992]
[1756719149016,0.12976559,109910.0,109900.0,0.45488992]
[1756719149309,0.001,109910.0,109900.0,1.36258086]
[1756719149795,0.001,109910.0,109900.0,1.37189751]
[1756719150309,0.08058,109940.0,109930.0,0.0726]
[1756719150507,0.08058,109940.0,109930.0,0.67010554]
[1756719150704,0.08058,109940.0,109930.0,0.4334]
[1756719150899,0.40998559,109950.0,109940.0,0.02371]
[1756719151107,0.12976559,109950.0,109940.0,0.67010554]
[1756719151309,0.08058,109950.0,109940.0,0.67010554]
[1756719151508,0.3442,109950.0,109940.0,0.40969]
[1756719151707,0.3442,109950.0,109940.0,0.04889]
[1756719152007,1.17596,109950.0,109940.0,0.0726]
[1756719152208,1.17596,109950.0,109940.0,0.4334]
[1756719152402,1.17696,109950.0,109940.0,0.67010554]
[1756719153111,0.08058,109930.0,109920.0,0.4334]
[1756719153310,0.91226,109930.0,109920.0,0.4334]
[1756719153512,1.77798309,109930.0,109910.0,0.62121554]
[1756719153707,0.08058,109920.0,109910.0,0.67010554]
[1756719154105,0.08058,109920.0,109910.0,0.74169877]
[1756719154710,0.08058,109920.0,109910.0,0.50499323]
[1756719155008,0.33058,109920.0,109910.0,0.04989]
[1756719155205,0.33058,109920.0,109910.0,0.05189]
[1756719155402,0.33058,109920.0,109910.0,0.003]
[1756719156012,0.69138,109920.0,109910.0,0.003]
[1756719156914,0.08058,109910.0,109900.0,0.71109696]
[1756719157114,0.91254,109910.0,109900.0,0.71109696]
[1756719157513,0.03401,109940.0,109920.0,0.02371]
[1756719157709,0.04657,109940.0,109930.0,0.67010554]
[1756719157913,0.58177191,109950.0,109930.0,0.96639554]
[1756719158114,0.62834191,109950.0,109940.0,0.67010554]
[1756719159409,0.09908191,109950.0,109940.0,0.67010554]
[1756719159911,0.96636052,109950.0,109940.0,0.67010554]
[1756719160117,0.96836052,109950.0,109940.0,0.72842241]
[1756719160824,0.96836052,109950.0,109940.0,0.4334]
[1756719161725,0.08058,109940.0,109930.0,0.38565]
[1756719162030,0.10059131,109940.0,109930.0,0.38565]
[1756719162415,0.10059131,109940.0,109930.0,0.4334]
[1756719162616,0.93391131,109940.0,109930.0,0.43794]
[1756719163220,0.93491052,109940.0,109930.0,0.43794]
[1756719163421,1.18491052,109940.0,109930.0,0.00454]
[1756719165225,1.47993293,109940.0,109930.0,0.00454]
[1756719165435,1.84073293,109940.0,109930.0,0.00454]
[1756719165623,1.76015293,109940.0,109910.0,0.65582241]
[1756719165928,0.0987304,109920.0,109910.0,0.73296241]
[1756719166224,0.95182092,109920.0,109910.0,0.73296241]
[1756719166823,0.95182092,109920.0,109910.0,0.73396241]
[1756719167226,1.20182092,109920.0,109910.0,0.001]
[1756719167523,1.20182092,109920.0,109910.0,0.003]
[1756719167727,0.36874092,109920.0,109910.0,0.003]
[1756719167923,1.20202092,109920.0,109910.0,0.003]
[1756719168325,0.36874092,109920.0,109910.0,0.02585]
[1756719168525,1.20194092,109920.0,109910.0,0.41069]
[1756719168725,0.36874092,109920.0,109910.0,0.43894]
[1756719168925,1.20190092,109920.0,109910.0,0.43894]
[1756719169127,1.20190092,109920.0,109910.0,0.43886]
[1756719169326,1.20190092,109920.0,109910.0,0.41061]
[1756719169726,1.20190092,109920.0,109910.0,0.40969]
[1756719169927,1.20290092,109920.0,109910.0,0.3608]
[1756719170328,0.02101052,109920.0,109910.0,1.32238241]
[1756719170521,0.001,109920.0,109910.0,1.41335961]
[1756719171023,0.001,109920.0,109910.0,1.32238241]
[1756719171223,0.001,109920.0,109910.0,1.41335951]
[1756719172026,0.001,109920.0,109910.0,1.41635951]
[1756719172737,0.08347,109930.0,109920.0,0.07656]
[1756719173030,0.10341369,109930.0,109920.0,0.73238241]
[1756719173232,0.10341369,109930.0,109920.0,0.43736]
[1756719173432,0.10341369,109930.0,109920.0,0.73238241]
[1756719176237,0.78177369,109930.0,109920.0,0.73238241]
[1756719177535,0.78177369,109930.0,109920.0,0.73438241]
[1756719177929,0.10341369,109930.0,109920.0,0.73438241]
[1756719178131,0.10341369,109930.0,109920.0,1.08438241]
[1756719178334,0.06673369,109930.0,109920.0,1.17535131]
[1756719178539,0.01994369,109930.0,109920.0,1.47037372]
[1756719178938,0.10197191,109950.0,109940.0,0.02656]
[1756719179144,0.10197191,109950.0,109940.0,0.69068241]
[1756719179145,0.64585191,109950.0,109940.0,0.69068241]
[1756719179334,0.04918559,109960.0,109950.0,0.03486]
[1756719179636,0.04679,109970.0,109960.0,0.03486]
[1756719179831,0.08347,109970.0,109960.0,0.69068241]
[1756719180637,0.08347,109970.0,109960.0,0.39566]
[1756719181042,0.13565559,109970.0,109960.0,0.69068241]
[1756719181241,0.38565559,109970.0,109960.0,0.01328]
[1756719181436,0.08347,109960.0,109950.0,0.40277153]
[1756719181637,0.91883,109960.0,109950.0,0.39447153]
[1756719181939,0.91883,109960.0,109950.0,0.32869394]
[1756719182134,0.91883,109960.0,109950.0,0.35027394]
[1756719182335,0.91883,109960.0,109950.0,0.05525153]
[1756719182638,0.92091,109960.0,109950.0,0.05525153]
[1756719182941,0.002,109960.0,109950.0,1.23529635]
[1756719183134,0.08347,109980.0,109970.0,0.02646]
[1756719183337,0.04679,109980.0,109960.0,0.66212241]
[1756719183541,0.92107,109970.0,109960.0,0.68682241]
[1756719185244,0.08747,109980.0,109970.0,0.02646]
[1756719185540,0.92507,109980.0,109970.0,0.68228241]
[1756719185944,0.92107,109980.0,109970.0,0.68228241]
[1756719186132,0.04679,109980.0,109970.0,0.68228241]
[1756719186340,0.06778245,109990.0,109980.0,0.02646]
[1756719186341,0.93926686,109990.0,109980.0,0.02646]
[1756719186742,0.08647,109980.0,109970.0,0.3608]
[1756719186938,0.08347,109970.0,109960.0,0.70727786]
[1756719187135,0.92103,109970.0,109960.0,0.36534]
[1756719187335,0.92103,109970.0,109960.0,0.00454]
[1756719187540,1.53183,109970.0,109960.0,0.00454]
[1756719187737,1.58101559,109970.0,109960.0,0.00454]
[1756719188244,1.53183,109970.0,109960.0,0.00454]
[1756719188438,1.59662127,109970.0,109960.0,0.00454]
[1756719188839,1.89164368,109970.0,109960.0,0.00454]
[1756719189038,1.89164368,109970.0,109930.0,0.36985294]
[1756719189039,0.08347,109940.0,109930.0,0.3608]
[1756719189243,0.03668,109930.0,109920.0,0.03163009]
[1756719189451,0.1323803,109930.0,109920.0,0.02065009]
[1756719189654,0.1323803,109930.0,109920.0,0.04919009]
[1756719190139,0.1323803,109930.0,109920.0,0.03821009]
[1756719190340,0.1323803,109930.0,109920.0,0.04021009]
[1756719190540,0.1323803,109930.0,109920.0,0.02265009]
[1756719190752,0.08347,109930.0,109920.0,0.02265009]
[1756719190942,0.10317778,109930.0,109920.0,0.04021009]
[1756719191142,0.10317778,109930.0,109920.0,0.02265009]
[1756719191941,0.10317778,109930.0,109920.0,0.02465009]
[1756719192142,0.94081778,109930.0,109920.0,0.07075009]
[1756719192739,0.00872778,109930.0,109920.0,0.91079491]
[1756719193047,0.00013662,109940.0,109920.0,1.73158331]
[1756719193353,0.00013662,109940.0,109930.0,0.65582241]
[1756719193548,0.00013662,109940.0,109930.0,1.32678311]
[1756719193744,0.14384,109960.0,109940.0,0.0909457]
[1756719194047,0.14384,109960.0,109950.0,1.01662241]
[1756719195247,0.14384,109960.0,109950.0,1.08964465]
[1756719196450,0.14484,109960.0,109950.0,1.08964465]
[1756719197253,0.66624,109960.0,109950.0,1.08964465]
[1756719198351,0.001,109960.0,109950.0,2.04561146]
[1756719198550,0.001,109960.0,109950.0,1.75058905]
[1756719199148,0.001,109960.0,109950.0,1.75054905]
[1756719199644,0.001,109960.0,109950.0,2.04557146]
[1756719200541,0.001,109960.0,109950.0,1.75054905]
[1756719201848,0.0843,109960.0,109950.0,1.18054905]
[1756719202155,0.001,109960.0,109950.0,1.55054905]
[1756719203449,0.001,109960.0,109950.0,1.80054905]
[1756719206447,0.001,109960.0,109950.0,1.55054905]
[1756719207956,0.03668,109980.0,109950.0,1.55054905]
[1756719208153,0.10285524,109980.0,109970.0,0.65582241]
[1756719209556,0.35285524,109980.0,109970.0,0.65582241]
[1756719209957,0.35285524,109980.0,109970.0,1.01662241]
[1756719210549,0.35485524,109980.0,109970.0,1.01662241]
[1756719210952,0.35485524,109980.0,109970.0,0.7216]
[1756719211155,0.35485524,109980.0,109970.0,1.01662241]
[1756719211960,0.35485524,109980.0,109970.0,0.7216]
[1756719212259,0.37294991,109980.0,109970.0,0.7216]
[1756719216161,0.37294991,109980.0,109960.0,0.65582241]
[1756719216367,0.0833,109970.0,109960.0,0.65582241]
[1756719216666,0.10285524,109970.0,109960.0,0.66036241]
[1756719217065,0.91013524,109970.0,109960.0,0.36534]
[1756719217266,1.45515765,109970.0,109960.0,0.36534]
[1756719218165,1.45615765,109970.0,109960.0,0.36534]
[1756719218565,1.45615765,109970.0,109960.0,0.32784]
[1756719218863,0.0833,109940.0,109930.0,0.75987778]
[1756719219068,0.0833,109940.0,109930.0,0.77987778]
[1756719220171,0.0833,109940.0,109930.0,0.78187778]
[1756719220375,0.0833,109940.0,109930.0,0.48685537]
[1756719220970,0.0833,109940.0,109930.0,0.78387778]
[1756719221367,0.0833,109940.0,109930.0,0.85623662]
[1756719221772,0.0833,109940.0,109930.0,0.85523662]
[1756719221968,0.10288478,109940.0,109930.0,0.85323662]
[1756719223467,0.10288478,109940.0,109930.0,0.53821421]
[1756719223668,0.10288478,109940.0,109930.0,0.83323662]
[1756719224478,0.10288478,109940.0,109930.0,0.53821421]
[1756719224975,0.10288478,109940.0,109930.0,0.83323662]
[1756719227477,0.94160478,109940.0,109930.0,0.83323662]
[1756719227973,0.92202,109940.0,109930.0,0.53821421]
[1756719228173,1.48661558,109940.0,109930.0,0.40659537]
[1756719228572,1.55239317,109940.0,109930.0,0.04579537]
[1756719229170,1.55239317,109940.0,109930.0,0.04575537]
[1756719229570,1.55239317,109940.0,109930.0,0.02100537]
[1756719229770,1.84741558,109940.0,109930.0,0.02100537]
[1756719230372,1.55239317,109940.0,109930.0,0.02100537]
[1756719230677,1.55239317,109940.0,109930.0,0.04481537]
[1756719231880,0.71367317,109940.0,109930.0,0.04481537]
[1756719232069,1.55151317,109940.0,109930.0,0.04481537]
[1756719233080,0.71367317,109940.0,109930.0,0.10351537]
[1756719233282,1.55131317,109940.0,109930.0,0.06774537]
[1756719233676,1.55131317,109940.0,109930.0,0.02100537]
[1756719233877,0.71367317,109940.0,109930.0,0.02100537]
[1756719234074,1.55119317,109940.0,109930.0,0.02100537]
[1756719234470,1.55111317,109940.0,109930.0,0.02100537]
[1756719234882,1.55111317,109940.0,109930.0,0.04481537]
[1756719236385,1.55111317,109940.0,109930.0,0.02100537]
[1756719236580,1.59613558,109940.0,109930.0,0.001]
[1756719236784,1.80945558,109940.0,109910.0,0.39657]
[1756719237082,0.08091,109920.0,109910.0,0.44331]
[1756719237282,0.91803,109920.0,109910.0,0.44331]
[1756719237485,1.21305241,109920.0,109910.0,0.02381]
[1756719237684,0.03391,109910.0,109900.0,0.4170715]
[1756719237884,0.08091,109910.0,109900.0,0.4638115]
[1756719238776,0.91803,109910.0,109900.0,0.4638115]
[1756719238983,0.91803,109910.0,109900.0,0.4678115]
[1756719239486,0.93616956,109910.0,109900.0,0.45031]
[1756719239984,0.93616956,109910.0,109900.0,0.52481373]
[1756719241283,0.95572207,109910.0,109900.0,0.52481373]
[1756719241484,0.95532207,109910.0,109900.0,0.52481373]
[1756719241685,0.11860207,109910.0,109900.0,0.52481373]
[1756719242082,0.95524207,109910.0,109900.0,0.52481373]
[1756719244086,0.95524207,109910.0,109900.0,0.81983614]
[1756719244283,0.95524207,109910.0,109900.0,0.41454]
[1756719244490,0.95524207,109910.0,109900.0,0.3678]
[1756719244783,1.25026448,109910.0,109900.0,0.007]
[1756719245980,0.95488207,109910.0,109900.0,0.08951]
[1756719246381,0.95476207,109910.0,109900.0,0.45031]
[1756719246886,0.95476207,109910.0,109900.0,0.74533241]
[1756719247086,0.95476207,109910.0,109900.0,0.45031]
[1756719247288,0.11860207,109910.0,109900.0,0.45031]
[1756719247488,0.95480207,109910.0,109900.0,0.45031]
[1756719249291,0.11860207,109910.0,109900.0,0.45031]
[1756719249588,0.95448207,109910.0,109900.0,0.45031]
[1756719253489,0.95448207,109910.0,109900.0,0.08951]
[1756719253885,0.95448207,109910.0,109900.0,0.45031]
[1756719255187,0.11860207,109910.0,109900.0,0.45031]
[1756719255387,0.95372207,109910.0,109900.0,0.45031]
[1756719257495,0.95352207,109910.0,109900.0,0.45031]
[1756719259191,0.11860207,109910.0,109900.0,0.45031]
[1756719259392,0.95324207,109910.0,109900.0,0.45031]
[1756719260397,0.95324207,109910.0,109900.0,0.68651831]
[1756719261595,0.95324207,109910.0,109900.0,0.45031]
[1756719262298,0.95324207,109910.0,109900.0,0.68651831]
[1756719263802,0.95324207,109910.0,109900.0,0.45031]
[1756719263992,0.95324207,109910.0,109900.0,0.68651831]
[1756719265306,0.95324207,109910.0,109900.0,0.45031]
[1756719265892,0.95324207,109910.0,109900.0,0.41595]
[1756719266097,0.95324207,109910.0,109900.0,0.45143]
[1756719266900,1.18945038,109910.0,109900.0,0.39161]
[1756719267092,1.18945038,109910.0,109900.0,0.3678]
[1756719267494,0.95324207,109910.0,109900.0,0.41697]
[1756719268403,0.95324207,109910.0,109900.0,0.45245]
[1756719269505,1.18945038,109910.0,109900.0,0.007]
[1756719269803,1.51945038,109910.0,109900.0,0.007]
[1756719273100,0.95324207,109910.0,109900.0,0.03183]
[1756719273407,1.18945038,109910.0,109900.0,0.03183]
[1756719274303,1.18945038,109910.0,109900.0,0.03179]
[1756719276307,1.18945038,109910.0,109900.0,0.00696]
[1756719277306,1.38945038,109910.0,109900.0,0.00696]
[1756719278006,1.23836068,109910.0,109900.0,0.00696]
[1756719279008,1.23632068,109910.0,109900.0,0.03179]
[1756719279204,1.23632068,109910.0,109900.0,0.39259]
[1756719279606,1.23632068,109910.0,109900.0,0.03179]
[1756719280808,1.15541068,109910.0,109900.0,0.00696]
[1756719281014,1.24059068,109910.0,109900.0,0.00696]
[1756719284210,1.23995068,109910.0,109900.0,0.00696]
[1756719286616,1.00358237,109910.0,109900.0,1.31861831]
[1756719287114,0.95467207,109910.0,109900.0,1.31861831]
[1756719290415,0.95467207,109910.0,109900.0,0.93861831]
[1756719290719,0.95467207,109910.0,109900.0,1.30861831]
[1756719291223,0.95467207,109910.0,109900.0,0.70241]
[1756719291415,0.95467207,109910.0,109900.0,1.26861831]
[1756719293814,0.95467207,109910.0,109900.0,0.93861831]
[1756719294014,0.12287207,109910.0,109900.0,0.93861831]
[1756719294215,0.95467207,109910.0,109900.0,0.93861831]
[1756719296020,0.06815251,109910.0,109900.0,1.39827906]
[1756719296214,0.93709251,109910.0,109900.0,1.39827906]
[1756719296619,0.89995251,109910.0,109900.0,1.39827906]
[1756719297924,0.06815251,109910.0,109900.0,1.39827906]
[1756719298422,0.88036,109910.0,109900.0,1.39827906]
[1756719298626,0.02472,109910.0,109900.0,1.39827906]
[1756719298827,0.88093,109910.0,109900.0,1.39823366]
[1756719299231,0.88093,109910.0,109900.0,1.14823366]
[1756719299430,0.91807,109910.0,109900.0,1.14823366]
[1756719300140,0.85636,109910.0,109900.0,1.14823366]
[1756719300337,0.91807,109910.0,109900.0,0.82823366]